fUST/lending_fUST_20250207
["ID","MTS","AMOUNT","RATE_DAILY","PERIOD"]
[352071919,1738934573256,-2447.70970247,0.000132,2]
[352071920,1738934573279,-6167.78400132,0.000132,2]
[352071921,1738934573415,-190.5976446,0.00013299,2]
[352071922,1738934573438,-248.12231017,0.00013299,2]
[352071923,1738934573462,-500.0,0.00013299,2]
[352071924,1738934573487,-509.45182346,0.00013299,2]
[352071925,1738934573511,-500.0,0.00013299,2]
[352071926,1738934573533,-324.79635874,0.00013299,2]
[352071927,1738934573556,-387.24,0.00013299,2]
[352071928,1738934573580,-21711.0,0.000133,2]
[352071929,1738934573613,-31424.21180961,0.000133,5]
[352071934,1738934826277,910.69516286,0.000192,120]
[352071935,1738934837088,-799.85690426,0.00013068,2]
[352071936,1738934842095,-158.09184,0.00013068,2]
[352071937,1738934850107,-228.87136649,0.00013068,2]
[352071947,1738934939274,341.88,0.00010959,2]
[352071948,1738934949835,284.9,0.00010959,2]
[352071953,1738934960576,205.58708523,0.00010959,2]
[352071954,1738934960610,31.83291477,0.00010959,2]
[352071955,1738934971104,-4893.1694,0.00012444,2]
[352071956,1738934971139,232.46108536,0.00010959,2]
[352071957,1738934971173,74.11891464,0.00010959,2]
[352071958,1738934981669,255.48,0.00010959,2]
[352071963,1738934989962,4500.0,0.00010876,2]
[352071964,1738934992176,740.38,0.00010959,2]
[352071965,1738935002785,1186.55,0.00010959,2]
[352071966,1738935013382,988.8,0.00010959,2]
[352071969,1738935023914,824.0,0.00010959,2]
[352072031,1738935033145,-4500.0,0.00012246,2]
[352072033,1738935033156,-106.8306,0.00012444,2]
[352072035,1738935033183,-300.0,0.00012569,2]
[352072038,1738935033193,-151.0,0.0001257,2]
[352072041,1738935033204,-151.0,0.0001257,2]
[352072043,1738935033215,-151.0,0.0001257,2]
[352072045,1738935033227,-151.0,0.0001257,2]
[352072048,1738935033238,-151.0,0.0001257,2]
[352072049,1738935033248,-151.0,0.0001257,2]
[352072051,1738935033258,-151.0,0.0001257,2]
[352072054,1738935033270,-151.0,0.0001257,2]
[352072056,1738935033280,-151.0,0.0001257,2]
[352072058,1738935033291,-151.0,0.0001257,2]
[352072060,1738935033302,-151.0,0.0001257,2]
[352072062,1738935033312,-151.0,0.0001257,2]
[352072064,1738935033323,-151.0,0.0001257,2]
[352072066,1738935033333,-151.0,0.0001257,2]
[352072068,1738935033344,-151.0,0.0001257,2]
[352072070,1738935033353,-151.0,0.0001257,2]
[352072072,1738935033363,-151.0,0.0001257,2]
[352072074,1738935033373,-151.0,0.0001257,2]
[352072076,1738935033383,-151.0,0.0001257,2]
[352072078,1738935033393,-153.0,0.0001257,2]
[352072079,1738935033403,-153.0,0.0001257,2]
[352072081,1738935033417,-153.0,0.0001257,2]
[352072093,1738935033540,-153.0,0.0001257,2]
[352072095,1738935033551,-153.0,0.0001257,2]
[352072096,1738935033562,-153.0,0.0001257,2]
[352072099,1738935033572,-153.0,0.0001257,2]
[352072101,1738935033582,-153.0,0.0001257,2]
[352072102,1738935033592,-153.0,0.0001257,2]
[352072104,1738935033603,-153.0,0.0001257,2]
[352072106,1738935033614,-153.0,0.0001257,2]
[352072108,1738935033625,-153.0,0.0001257,2]
[352072110,1738935033635,-153.0,0.0001257,2]
[352072112,1738935033646,-153.0,0.0001257,2]
[352072114,1738935033656,-153.0,0.0001257,2]
[352072116,1738935033674,-153.0,0.0001257,2]
[352072118,1738935033685,-234.42,0.0001257,2]
[352072120,1738935033696,-10759.84403816,0.000127,2]
[352072122,1738935033708,-2187.66675147,0.00012937,2]
[352072124,1738935033719,-5551.00560117,0.000132,2]
[352072126,1738935033731,-462.38840742,0.000132,2]
[352072128,1738935033742,-298.04694059,0.000132,2]
[352072130,1738935033752,-500.0,0.00013298,2]
[352072132,1738935033763,-605.18180996,0.00013298,2]
[352072134,1738935033774,-500.0,0.00013298,2]
[352072136,1738935033785,-500.0,0.00013298,2]
[352072138,1738935033795,-500.0,0.00013298,2]
[352072140,1738935033806,-234.76121101,0.00013298,2]
[352072142,1738935033817,-500.0,0.00013298,2]
[352072144,1738935033829,-500.0,0.00013298,2]
[352072146,1738935033840,-500.0,0.00013298,2]
[352072148,1738935033851,-500.0,0.00013298,2]
[352072150,1738935033861,-500.0,0.00013298,2]
[352072152,1738935033873,-500.0,0.00013298,2]
[352072154,1738935033891,-500.0,0.00013298,2]
[352072155,1738935033902,-644.81241626,0.00013298,2]
[352072156,1738935033919,-500.0,0.00013298,2]
[352072157,1738935033933,-500.0,0.00013298,2]
[352072158,1738935033944,-500.0,0.00013298,2]
[352072159,1738935033955,-500.0,0.00013298,2]
[352072160,1738935033967,-158.8313705,0.00013299,2]
[352072161,1738935033977,-104391.92087884,0.000133,5]
[352072192,1738935034426,686.66,0.00010959,2]
[352072577,1738935038583,-500.0,0.00013298,2]
[352072579,1738935038594,-500.0,0.000133,5]
[352072625,1738935039153,-29569.44961826,0.000133,5]
[352072627,1738935039164,-132162.80610561,0.000133,5]
[352072630,1738935039181,-823.544997,0.000133,5]
[352072637,1738935039245,-16015.27854567,0.000133,5]
[352072795,1738935040892,-1722.87379356,0.000133,5]
[352072907,1738935043735,-664.60803133,0.000133,5]
[352072909,1738935043809,-1335.42018537,0.000133,5]
[352072910,1738935043821,-29381.39580499,0.000133,5]
[352072911,1738935043833,-5003.49014185,0.000133,5]
[352072912,1738935043884,-56731.5252472,0.000133,5]
[352072913,1738935043901,-5000.0,0.00013167,2]
[352072914,1738935043911,-304897.89468264,0.000133,5]
[352072916,1738935044934,572.22,0.00010959,2]
[352072957,1738935046844,-151.0,0.00013299,2]
[352072958,1738935046853,-201.5613876,0.000133,5]
[352072959,1738935046865,-25040.59833973,0.000133,5]
[352072960,1738935046925,-344704.67273745,0.000133,5]
[352072961,1738935046935,-775240.85598334,0.000133,5]
[352072962,1738935046948,-8569.47834581,0.000133,5]
[352072963,1738935047727,-88.87298936,0.000133,5]
[352072964,1738935048059,-903.31230661,0.000133,5]
[352072965,1738935055610,476.85,0.00010959,2]
[352072966,1738935065992,93.82960853,0.00010959,2]
[352072967,1738935066027,303.54039147,0.00010959,2]
[352072968,1738935076542,331.15,0.00010959,2]
[352072969,1738935087245,275.95,0.00010959,2]
[352072970,1738935097756,229.96,0.00010959,2]
[352072971,1738935108259,191.64,0.00010959,2]
[352072972,1738935118771,159.7,0.00010959,2]
[352072973,1738935129291,798.5,0.00010959,2]
[352072974,1738935495173,157.909658,0.00010854,2]
[352072975,1738935495415,157.909658,0.00010908,2]
[352072982,1738935580465,250.0,0.00010789,2]
[352072984,1738935782647,296.4301864,0.00010789,2]
[352072985,1738935811744,5000.0,0.00010913,2]
[352072986,1738935827865,2514.28028484,0.00010913,2]
[352072987,1738935932803,500.0,0.0001402,28]
[352072988,1738935984819,823.8464743,0.00010789,2]
[352072989,1738935994399,4117.91370735,0.00010913,2]
[352072990,1738936046142,-1996.05690637,0.00011023,2]
[352072991,1738936078795,1000.0,0.00019,120]
[352072992,1738936083830,4391.26963964,0.00010913,2]
[352072993,1738936083866,292.77756036,0.00010913,2]
[352072994,1738936146197,-1361.67665803,0.00011023,2]
[352072995,1738936146222,-300.0,0.00011452,2]
[352072996,1738936146245,-20049.5440935,0.00011453,2]
[352072997,1738936146270,-9627.28053675,0.00011592,2]
[352072998,1738936153316,-8221.47099089,0.00011592,2]
[352072999,1738936155108,-7051.24847236,0.00011592,2]
[352073000,1738936155130,-3866.86817921,0.00011972,2]
[352073004,1738936166175,-33.13182079,0.00011972,2]
[352073005,1738936166196,-500.0,0.00011999,2]
[352073006,1738936166219,-404.97915736,0.00011999,2]
[352073007,1738936166241,-16401.93127699,0.00012,2]
[352073008,1738936220052,-300.0,0.00011914,2]
[352073009,1738936220080,-13406.5,0.00011915,2]
[352073046,1738936233416,-1289.31172241,0.00011915,2]
[352073049,1738936233429,-10204.18827759,0.00011915,2]
[352073051,1738936233440,-210.06872301,0.00012,2]
[352073053,1738936233451,-153.0,0.0001237,2]
[352073055,1738936233461,-814.83101855,0.00012727,2]
[352073057,1738936233471,-405.58402395,0.000129,2]
[352073059,1738936233482,-405.5840239,0.000129,2]
[352073061,1738936233493,-161.26339454,0.00012935,2]
[352073063,1738936233504,-13264.03974987,0.00012962,2]
[352073065,1738936233515,-7944.49845337,0.00013,2]
[352073067,1738936233525,-36249.51967783,0.00013,2]
[352073070,1738936233543,-3061.1948724,0.00013,2]
[352073072,1738936233556,-2895.17577876,0.00013,2]
[352073074,1738936233566,-2556.02924453,0.00013,2]
[352073208,1738936237701,-862.97452756,0.00011972,2]
[352073211,1738936237713,-2737.02547244,0.00011972,2]
[352073213,1738936237723,-4882.66828825,0.00013,2]
[352073215,1738936237732,-151.0,0.00013,2]
[352073217,1738936237742,-677.9573819,0.00013,8]
[352073219,1738936237761,-9322.0426181,0.00013,8]
[352073221,1738936237771,-151.0,0.00013,2]
[352073225,1738936237790,-420.0,0.0001308,2]
[352073229,1738936237804,-163.63404862,0.00013091,2]
[352073232,1738936237814,-151.0,0.000131,2]
[352073235,1738936237826,-151.0,0.000131,2]
[352073237,1738936237840,-151.0,0.000131,2]
[352073239,1738936237851,-151.0,0.000131,2]
[352073242,1738936237862,-151.0,0.000131,2]
[352073245,1738936237872,-151.0,0.000131,2]
[352073247,1738936237883,-201.38,0.00013191,2]
[352073251,1738936237897,-151.0,0.000132,2]
[352073254,1738936237908,-151.0,0.000132,2]
[352073258,1738936237918,-151.0,0.000132,2]
[352073261,1738936237928,-724.17260175,0.000132,2]
[352073263,1738936237938,-724.17260173,0.000132,2]
[352073266,1738936237948,-163.63404861,0.00013218,2]
[352073269,1738936237958,-724.17260173,0.00013245,2]
[352073272,1738936237968,-508.3819502,0.00013273,2]
[352073275,1738936237978,-151.0,0.00013299,2]
[352073278,1738936237988,-173.68561711,0.00013299,2]
[352073281,1738936237998,-500.0,0.00013299,2]
[352073285,1738936238008,-500.0,0.00013299,2]
[352073288,1738936238018,-400.77327778,0.00013299,2]
[352073291,1738936238028,-4267.36981803,0.000133,5]
[352073294,1738936238041,-2177.57719046,0.000133,5]
[352073297,1738936238053,-670.89738549,0.000133,5]
[352073300,1738936238064,-8257.91254855,0.000133,5]
[352073302,1738936238076,-5680.8,0.000133,5]
[352073306,1738936238094,-13931.6012986,0.000133,5]
[352073576,1738936239859,-24445.5285375,0.000133,5]
[352073584,1738936239931,-10058.24141999,0.000133,5]
[352073586,1738936239943,-52780.20115526,0.000133,5]
[352073659,1738936243163,-264.0253292,0.000133,5]
[352073662,1738936243183,-656.34355974,0.000133,5]
[352073936,1738936246005,-22384.44213206,0.000133,5]
[352073939,1738936246015,-151.0,0.000133,2]
[352073941,1738936246024,-151.0,0.000133,2]
[352073943,1738936246034,-151.0,0.000133,2]
[352073945,1738936246044,-151.0,0.000133,2]
[352073947,1738936246053,-151.0,0.000133,2]
[352073949,1738936246062,-151.0,0.000133,2]
[352073951,1738936246072,-151.0,0.000133,2]
[352073953,1738936246081,-151.0,0.000133,2]
[352073955,1738936246090,-151.0,0.000133,2]
[352073956,1738936246100,-151.0,0.000133,2]
[352073958,1738936246110,-151.0,0.000133,2]
[352073961,1738936246120,-151.0,0.000133,2]
[352073962,1738936246129,-151.0,0.000133,2]
[352073965,1738936246139,-151.0,0.000133,2]
[352073967,1738936246149,-151.0,0.000133,2]
[352073969,1738936246158,-151.0,0.000133,2]
[352073970,1738936246168,-151.0,0.000133,2]
[352073973,1738936246177,-151.0,0.000133,2]
[352073975,1738936246187,-151.0,0.000133,2]
[352073976,1738936246196,-151.0,0.000133,2]
[352073978,1738936246205,-151.0,0.000133,2]
[352073980,1738936246215,-151.0,0.000133,2]
[352073983,1738936246224,-309.792,0.000133,2]
[352073985,1738936246233,-151.0,0.000133,2]
[352073987,1738936246243,-151.0,0.000133,2]
[352073989,1738936246252,-257610.82,0.000133,5]
[352073990,1738936246261,-151.0,0.000133,2]
[352073992,1738936246271,-151.0,0.000133,2]
[352073995,1738936246280,-151.0,0.000133,2]
[352073997,1738936246290,-151.0,0.000133,2]
[352073999,1738936246299,-4574.4486094,0.00013312,2]
[352074001,1738936246309,-3600.0,0.00013342,2]
[352074003,1738936246319,-163.63404861,0.00013345,2]
[352074005,1738936246327,-150.21735571,0.00013398,2]
[352074007,1738936246336,-500.0,0.00013398,2]
[352074018,1738936246486,-500.0,0.00013398,2]
[352074020,1738936246626,-150.11,0.00013398,2]
[352074022,1738936246719,-150.11,0.00013398,2]
[352074024,1738936246868,-150.11,0.00013398,2]
[352074026,1738936246990,-150.11,0.00013398,2]
[352074028,1738936247082,-500.0,0.00013398,2]
[352074031,1738936247183,-500.0,0.00013398,2]
[352074033,1738936247313,-150.09,0.00013398,2]
[352074035,1738936247415,-500.0,0.00013398,2]
[352074036,1738936247529,-150.09,0.00013398,2]
[352074038,1738936247599,-150.09,0.00013398,2]
[352074040,1738936247616,-868.0,0.00013398,2]
[352074042,1738936247626,-150.09,0.00013398,2]
[352074044,1738936247636,-150.09,0.00013398,2]
[352074046,1738936247646,-564.0,0.00013398,2]
[352074048,1738936247655,-150.09,0.00013398,2]
[352074050,1738936247665,-500.0,0.00013398,2]
[352074052,1738936247675,-150.09,0.00013398,2]
[352074054,1738936247684,-10000.0,0.000134,2]
[352074056,1738936247693,-151.0,0.000134,2]
[352074058,1738936247703,-151.0,0.000134,2]
[352074061,1738936247713,-151.0,0.000134,2]
[352074063,1738936247723,-151.0,0.000134,2]
[352074065,1738936247733,-151.0,0.000134,2]
[352074066,1738936247743,-622.0,0.000134,2]
[352074068,1738936247752,-151.0,0.000134,2]
[352074071,1738936247761,-724.17260173,0.00013417,2]
[352074073,1738936247771,-219.04,0.00013452,2]
[352074075,1738936247782,-163.63404861,0.00013471,2]
[352074077,1738936247792,-157.151267,0.00013487,2]
[352074079,1738936247801,-1000.0,0.000135,2]
[352074081,1738936247811,-151.0,0.000135,2]
[352074083,1738936247820,-151.0,0.000135,2]
[352074085,1738936247830,-151.0,0.000135,2]
[352074087,1738936247842,-151.0,0.000135,2]
[352074089,1738936247852,-151.0,0.000135,2]
[352074091,1738936247862,-151.0,0.000135,2]
[352074092,1738936247872,-150.0,0.00013514,2]
[352074094,1738936247883,-537.0,0.00013514,2]
[352074096,1738936247893,-1975.0,0.00013514,2]
[352074099,1738936247903,-2296.0,0.00013514,2]
[352074101,1738936247913,-187.505,0.00013514,2]
[352074103,1738936247923,-150.0,0.00013514,2]
[352074105,1738936247934,-152.0,0.00013573,2]
[352074107,1738936247943,-724.17260173,0.0001359,2]
[352074109,1738936247953,-4995.90504108,0.00013598,2]
[352074111,1738936247962,-163.63404861,0.00013598,2]
[352074113,1738936247972,-3200.0,0.000136,2]
[352074115,1738936247981,-151.0,0.000136,2]
[352074117,1738936247991,-151.0,0.000136,2]
[352074118,1738936248000,-151.0,0.000136,2]
[352074121,1738936248010,-151.0,0.000136,2]
[352074123,1738936248019,-151.0,0.000136,2]
[352074125,1738936248029,-151.0,0.000136,2]
[352074127,1738936248039,-151.0,0.000136,2]
[352074129,1738936248050,-151.0,0.000136,2]
[352074131,1738936248060,-465.05031017,0.00013607,2]
[352074133,1738936248070,-405.5840239,0.00013614,2]
[352074135,1738936248081,-1001.059758,0.00013657,2]
[352074137,1738936248091,-500.0,0.00013672,2]
[352074138,1738936248101,-500.0,0.00013672,2]
[352074139,1738936248112,-150.11,0.00013672,2]
[352074140,1738936248122,-150.49771863,0.00013672,2]
[352074141,1738936248132,-150.22010098,0.00013672,2]
[352074142,1738936248141,-150.22553326,0.00013672,2]
[352074143,1738936248151,-500.0,0.00013672,2]
[352074144,1738936248160,-500.0,0.00013672,2]
[352074145,1738936248171,-715.93008291,0.00013672,2]
[352074146,1738936248181,-150.24531173,0.00013672,2]
[352074148,1738936248192,-868.0,0.00013672,2]
[352074151,1738936248203,-150.09,0.00013672,2]
[352074153,1738936248214,-564.0,0.00013672,2]
[352074155,1738936248224,-500.0,0.00013672,2]
[352074157,1738936248235,-150.09,0.00013672,2]
[352074159,1738936248245,-508.00561803,0.00013673,2]
[352074161,1738936248256,-500.0,0.00013673,2]
[352074163,1738936248268,-500.0,0.00013673,2]
[352074165,1738936248280,-501.84304651,0.00013673,2]
[352074167,1738936248291,-500.0,0.00013673,2]
[352074169,1738936248302,-500.0,0.00013673,2]
[352074171,1738936248313,-244.43994063,0.00013673,2]
[352074173,1738936248323,-500.0,0.00013673,2]
[352074175,1738936248335,-500.0,0.00013673,2]
[352074177,1738936248346,-500.0,0.00013673,2]
[352074179,1738936248356,-500.0,0.00013673,2]
[352074181,1738936248368,-151.0,0.00013698,2]
[352074183,1738936248379,-151.0,0.00013698,2]
[352074185,1738936248390,-151.0,0.00013698,2]
[352074187,1738936248401,-151.0,0.00013698,2]
[352074189,1738936248411,-151.0,0.00013698,2]
[352074191,1738936248421,-151.0,0.00013698,2]
[352074193,1738936248433,-151.0,0.00013698,2]
[352074195,1738936248443,-151.0,0.00013698,2]
[352074197,1738936248454,-151.0,0.00013698,2]
[352074199,1738936248465,-411.158301,0.00013698,2]
[352074201,1738936248477,-411.158301,0.00013698,2]
[352074203,1738936248488,-411.158301,0.00013698,2]
[352074205,1738936248499,-411.158301,0.00013698,2]
[352074207,1738936248508,-411.158301,0.00013698,2]
[352074209,1738936248517,-411.158301,0.00013698,2]
[352074211,1738936248528,-271.93803,0.00013698,2]
[352074213,1738936248540,-271.93803,0.00013698,2]
[352074216,1738936248551,-271.93803,0.00013698,2]
[352074217,1738936248562,-271.93803,0.00013698,2]
[352074219,1738936248573,-271.93803,0.00013698,2]
[352074222,1738936248584,-271.93803,0.00013698,2]
[352074224,1738936248596,-500.0,0.00013698,2]
[352074226,1738936248607,-151.0,0.00013698,2]
[352074228,1738936248617,-151.0,0.00013698,2]
[352074230,1738936248627,-151.0,0.00013698,2]
[352074231,1738936248638,-500.0,0.00013698,2]
[352074234,1738936248648,-500.29870609,0.00013698,2]
[352074235,1738936248658,-500.0,0.00013698,2]
[352074237,1738936248669,-500.0,0.00013698,2]
[352074240,1738936248680,-500.0,0.00013698,2]
[352074242,1738936248690,-500.0,0.00013698,2]
[352074244,1738936248701,-500.0,0.00013698,2]
[352074245,1738936248711,-500.0,0.00013698,2]
[352074247,1738936248721,-151.0,0.00013698,2]
[352074249,1738936248732,-706.715145,0.00013698,2]
[352074251,1738936248743,-706.715145,0.00013698,2]
[352074254,1738936248756,-706.715145,0.00013698,2]
[352074255,1738936248771,-500.0,0.00013698,2]
[352074257,1738936248783,-151.0,0.00013698,2]
[352074260,1738936248795,-706.715145,0.00013698,2]
[352074262,1738936248806,-706.715145,0.00013698,2]
[352074263,1738936248816,-706.715145,0.00013698,2]
[352074265,1738936248827,-500.0,0.00013698,2]
[352074268,1738936248838,-501.68634764,0.00013698,2]
[352074270,1738936248849,-500.0,0.00013698,2]
[352074272,1738936248859,-500.0,0.00013698,2]
[352074274,1738936248870,-500.44319718,0.00013698,2]
[352074276,1738936248881,-500.0,0.00013698,2]
[352074278,1738936248891,-500.0,0.00013698,2]
[352074280,1738936248909,-500.0,0.00013698,2]
[352074282,1738936248921,-500.0,0.00013698,2]
[352074283,1738936248930,-500.0,0.00013698,2]
[352074285,1738936248940,-500.0,0.00013698,2]
[352074288,1738936248954,-154.137068,0.00013698,2]
[352074290,1738936248965,-500.0,0.00013698,2]
[352074291,1738936248975,-500.0,0.00013698,2]
[352074293,1738936248984,-500.0,0.00013698,2]
[352074295,1738936248995,-500.0,0.00013698,2]
[352074297,1738936249006,-230.29003659,0.00013698,2]
[352074299,1738936249016,-500.0,0.00013698,2]
[352074309,1738936249103,-500.0,0.00013698,2]
[352074312,1738936249123,-500.41416219,0.00013698,2]
[352074314,1738936249134,-500.0,0.00013698,2]
[352074316,1738936249144,-500.0,0.00013698,2]
[352074318,1738936249154,-500.0,0.00013698,2]
[352074320,1738936249164,-500.0,0.00013698,2]
[352074322,1738936249174,-500.72811573,0.00013698,2]
[352074324,1738936249184,-151.0,0.00013698,2]
[352074326,1738936249194,-500.0,0.00013698,2]
[352074328,1738936249206,-505.39755004,0.00013698,2]
[352074330,1738936249216,-500.0,0.00013698,2]
[352074332,1738936249227,-502.3526413,0.00013698,2]
[352074334,1738936249238,-500.0,0.00013698,2]
[352074336,1738936249249,-500.0,0.00013698,2]
[352074338,1738936249260,-500.0,0.00013698,2]
[352074340,1738936249271,-500.0,0.00013698,2]
[352074342,1738936249281,-500.0,0.00013698,2]
[352074344,1738936249291,-500.0,0.00013698,2]
[352074346,1738936249301,-500.0,0.00013698,2]
[352074348,1738936249311,-500.0,0.00013698,2]
[352074351,1738936249322,-500.0,0.00013698,2]
[352074353,1738936249333,-500.0,0.00013698,2]
[352074354,1738936249343,-500.0,0.00013698,2]
[352074357,1738936249353,-500.0,0.00013698,2]
[352074358,1738936249362,-500.0,0.00013698,2]
[352074360,1738936249372,-500.0,0.00013698,2]
[352074362,1738936249382,-500.0,0.00013698,2]
[352074364,1738936249393,-500.0,0.00013698,2]
[352074366,1738936249403,-500.0,0.00013698,2]
[352074368,1738936249413,-500.0,0.00013698,2]
[352074370,1738936249434,-500.0,0.00013698,2]
[352074372,1738936249450,-500.0,0.00013698,2]
[352074374,1738936249461,-500.0,0.00013698,2]
[352074376,1738936249472,-500.0,0.00013698,2]
[352074378,1738936249485,-500.0,0.00013698,2]
[352074380,1738936249495,-500.0,0.00013698,2]
[352074382,1738936249505,-500.0,0.00013698,2]
[352074384,1738936249515,-500.0,0.00013698,2]
[352074385,1738936249525,-500.0,0.00013698,2]
[352074386,1738936249535,-500.0,0.00013698,2]
[352074387,1738936249545,-500.0,0.00013698,2]
[352074388,1738936249555,-500.0,0.00013698,2]
[352074389,1738936249565,-500.0,0.00013698,2]
[352074390,1738936249574,-500.0,0.00013698,2]
[352074391,1738936249584,-500.0,0.00013698,2]
[352074392,1738936249594,-500.0,0.00013698,2]
[352074394,1738936249605,-500.0,0.00013698,2]
[352074395,1738936249615,-588.23444667,0.00013698,2]
[352074398,1738936249626,-500.0,0.00013698,2]
[352074400,1738936249637,-605.13568649,0.00013698,2]
[352074402,1738936249648,-500.0,0.00013698,2]
[352074404,1738936249659,-500.0,0.00013698,2]
[352074406,1738936249670,-500.0,0.00013698,2]
[352074408,1738936249681,-500.0,0.00013698,2]
[352074410,1738936249692,-436.03128439,0.00013698,2]
[352074412,1738936249702,-500.0,0.00013698,2]
[352074413,1738936249712,-500.0,0.00013698,2]
[352074416,1738936249724,-500.0,0.00013698,2]
[352074418,1738936249735,-500.0,0.00013698,2]
[352074420,1738936249745,-500.0,0.00013698,2]
[352074422,1738936249756,-500.0,0.00013698,2]
[352074424,1738936249766,-500.0,0.00013698,2]
[352074426,1738936249777,-500.0,0.00013698,2]
[352074427,1738936249787,-500.0,0.00013698,2]
[352074429,1738936249797,-500.0,0.00013698,2]
[352074432,1738936249808,-500.0,0.00013698,2]
[352074434,1738936249818,-500.0,0.00013698,2]
[352074436,1738936249828,-500.0,0.00013698,2]
[352074437,1738936249841,-500.0,0.00013698,2]
[352074439,1738936249851,-500.0,0.00013698,2]
[352074441,1738936249860,-500.0,0.00013698,2]
[352074443,1738936249870,-500.0,0.00013698,2]
[352074445,1738936249880,-500.0,0.00013698,2]
[352074447,1738936249891,-500.0,0.00013698,2]
[352074449,1738936249901,-500.0,0.00013698,2]
[352074451,1738936249913,-500.0,0.00013698,2]
[352074454,1738936249923,-500.0,0.00013698,2]
[352074456,1738936249933,-500.0,0.00013698,2]
[352074458,1738936249943,-500.0,0.00013698,2]
[352074460,1738936249952,-500.0,0.00013698,2]
[352074462,1738936249968,-500.0,0.00013698,2]
[352074464,1738936249984,-500.0,0.00013698,2]
[352074466,1738936249993,-500.0,0.00013698,2]
[352074468,1738936250003,-741.737107,0.00013698,2]
[352074470,1738936250013,-500.0,0.00013698,2]
[352074472,1738936250023,-741.737107,0.00013698,2]
[352074474,1738936250032,-500.0,0.00013698,2]
[352074476,1738936250041,-1586.778451,0.00013698,2]
[352074478,1738936250050,-546.327906,0.00013698,2]
[352074480,1738936250060,-1586.778451,0.00013698,2]
[352074482,1738936250070,-503.62333349,0.00013698,2]
[352074484,1738936250079,-151.0,0.00013698,2]
[352074486,1738936250089,-546.327906,0.00013698,2]
[352074488,1738936250098,-264.0652,0.00013698,2]
[352074490,1738936250107,-510.23505452,0.00013698,2]
[352074491,1738936250118,-151.0,0.00013698,2]
[352074494,1738936250128,-500.0,0.00013698,2]
[352074496,1738936250137,-500.0,0.00013698,2]
[352074498,1738936250147,-500.0,0.00013698,2]
[352074500,1738936250156,-500.0,0.00013698,2]
[352074502,1738936250166,-500.0,0.00013698,2]
[352074504,1738936250181,-500.0,0.00013698,2]
[352074505,1738936250194,-500.0,0.00013698,2]
[352074507,1738936250204,-500.0,0.00013698,2]
[352074509,1738936250216,-500.0,0.00013698,2]
[352074511,1738936250227,-500.0,0.00013698,2]
[352074514,1738936250238,-500.0,0.00013698,2]
[352074516,1738936250249,-296.78825191,0.00013698,2]
[352074518,1738936250259,-500.0,0.00013698,2]
[352074520,1738936250270,-500.0,0.00013698,2]
[352074521,1738936250280,-500.0,0.00013698,2]
[352074523,1738936250291,-157.942455,0.00013698,2]
[352074525,1738936250301,-157.942455,0.00013698,2]
[352074527,1738936250311,-500.0,0.00013698,2]